Cogmind - Beta 17 *** ADVENTURER MODE // 2026.08.04 @ 14:45:03 Player: Jefffff Result: Destroyed by HY-NLQ(h) with Bolt Gun Performance ------------- Evolutions (0) 0 Regions Visited (3) 600 Robots Destroyed (22) 110 Value Destroyed (621) 621 Prototype IDs (1) 20 Alien Tech Used (0) 0 Bonus (680) 680 TOTAL SCORE: 2031 Bonus ------- Registered with UFD 300 Met Optimus in HQ 500 Friendly Fire -120 Cogmind --------- Core Integrity 0/250 Matter 300/300 Energy 271/275 System Corruption 0% Temperature Cool (0) Movement Core (550) Ox10 Location -9/Scraptown Parts ------- > --- POWER (1) -------- Deuterium Engine > --- PROPULSION (2) --- (None) > --- UTILITY (2) ------ Improved Heat Sink Large Storage Unit > --- WEAPON (2) ------- Compact Gauss Rifle > --- INVENTORY (15) --- Light Deuterium Engine Improved Aluminum Leg Carbon-fiber Leg Energy Well (350) Matter Compressor (250) Triangulator Advanced Sensor Array Surveybot 24 Chip Advanced Targeting Computer Weapon Cycler Reaction Control System Phase Shifter Improved Propulsion Shielding Component Analysis Suite Assault Cannon Peak State ------------ > --- POWER ------------ Improved Deuterium Engine > --- PROPULSION ------- Armored Huge Wheel > --- UTILITY ---------- Improved Heat Sink Large Storage Unit > --- WEAPON ----------- Heavy Machine Gun Compact Gauss Rifle > --- INVENTORY -------- Improved Aluminum Leg Improved Aluminum Leg Energy Well Matter Compressor Advanced Sensor Array Surveybot 24 Chip Advanced Targeting Computer Weapon Cycler Reaction Control System Phase Shifter Improved Propulsion Shielding Improved Hacking Suite Component Analysis Suite Plasma Cannon Assault Cannon [Rating: 33] Favorites ----------- Power Improved Deuterium Engine Engine Improved Deuterium Engine Propulsion Aluminum Leg Treads Light Treads Leg Aluminum Leg Wheel Armored Huge Wheel Utility Improved Heat Sink Device Improved Heat Sink Storage Large Storage Unit Weapon Assault Rifle Energy Gun Particle Gun Energy Cannon Plasma Cannon Ballistic Gun Assault Rifle Launcher Grenade Launcher Build | -11 -10 -10 -9 ------- Run | Yrd Mat Sub Scr Slots Evolved . | . . . . Power . | . . . . Propulsion . | . . . . Utility . | . . . . Weapon . | . . . . Parts Attached 26 | 6 9 . 11 Power 7 | 1 2 . 4 Engine 7 | 1 2 . 4 Core . | . . . . Reactor . | . . . . Propulsion 6 | 3 2 . 1 Treads 1 | 1 . . . Leg 4 | 2 2 . . Wheel 1 | . . . 1 Hover . | . . . . Flight . | . . . . Utility 4 | . 2 . 2 Device 2 | . 1 . 1 Storage 2 | . 1 . 1 Processor . | . . . . Hackware . | . . . . Protection . | . . . . Artifact . | . . . . Weapon 9 | 2 3 . 4 Energy Gun 3 | 1 1 . 1 Energy Cannon 1 | . . . 1 Ballistic Gun 4 | 1 1 . 2 Ballistic Cannon . | . . . . Launcher 1 | . 1 . . Special Weapon . | . . . . Impact Weapon . | . . . . Slashing Weapon . | . . . . Piercing Weapon . | . . . . Special Melee Weapon . | . . . . Unidentified Prototypes . | . . . . Parts Lost 9 | . 5 . 4 Power 2 | . 1 . 1 Propulsion 3 | . 2 . 1 Utility . | . . . . Weapon 4 | . 2 . 2 Highest Loss Streak 5 | . 5 . 2 To Critical Strikes . | . . . . Average Backups 11 | 1 6 8 14 Power . | . 1 2 . Propulsion . | . . . 1 Utility 6 | . 1 2 9 Weapon 3 | . 2 3 3 Tool/Special . | . . . . Unused Backups 35 | . 2 . 33 Power 5 | . . . 5 Propulsion 2 | . . . 2 Utility 19 | . . . 19 Weapon 7 | . 1 . 6 Tool/Special 2 | . 1 . 1 Average Slot Usage (%) 88 | . 92 100 85 Engine 13 | . 14 14 13 Leg 9 | . 26 28 1 Wheel 8 | . . . 13 Device 13 | . 11 14 14 Storage 13 | . 11 14 14 Energy Gun 5 | . 13 14 1 Ballistic Gun 22 | . 14 14 25 Peak Build Rating 33 | 5 11 11 33 Average Rating 20 | 4 9 11 25 On Entrance 6 | . 5 11 11 Avg Prop Armor Cover (%) . | . . . . Naked Turns . | . . . . Heaviest Build 39 | 5 16 16 39 Greatest Support 28 | 20 20 20 28 Greatest Overweight (x) 4 | . 4 . 1 Average Overweight (x) . | . . . . Largest Inventory Capacity 15 | 5 8 8 15 Average Capacity 12 | 5 7 8 14 Most Carried 15 | 3 8 8 15 Average Carried 11 | 1 6 8 14 Final Capacity 15 | 5 8 8 15 Final Carried 15 | 3 8 8 15 Class Distribution -------------------- 69% | Mutant 30% | Scavenger-Mutant Dominant Class ---------------- Scavenger-Mutant | -10/Materials Scavenger-Mutant | -10/Subcaves Mutant | -9/Scraptown Resources | -11 -10 -10 -9 ----------- Run | Yrd Mat Sub Scr Matter Collected 1245 | 252 195 30 768 Remotely . | . . . . Salvage Created 815 | . 365 167 283 Parts 49 | . 19 17 13 Haulers Intercepted 2 | . 2 . . Recyclers Shooed . | . . . . Parts Field Recycled . | . . . . Retrieved Matter . | . . . . Parts Self-Destructed 8 | . . 8 . Prevented . | . . . . Parts Restored . | . . . . Kills | -11 -10 -10 -9 ------- Run | Yrd Mat Sub Scr Combat Hostiles Destroyed 15 | . 8 4 3 Guns 14 | . 8 4 2 Cannons 1 | . . . 1 Classes Destroyed 9 | . 4 2 3 Hauler 2 | . 2 . . Turret 1 | . . . 1 Watcher 3 | . 3 . . Swarmer 3 | . 3 . . Grunt 5 | . 5 . . Sentry 1 | . . 1 . Subdweller 3 | . . 3 . Scrapper 3 | . . . 3 Mutant 1 | . . . 1 Best Kill Streak 4 | . 4 2 1 Combat Bots Only 4 | . 4 2 1 Max Kills in Single Turn 1 | . 1 1 1 Gunslinging . | . . . . Exploded . | . . . . Melee . | . . . . Uniques/NPCs Destroyed . | . . . . Combat | -11 -10 -10 -9 -------- Run | Yrd Mat Sub Scr Hostile Shots Fired 184 | . 103 10 71 Missed 49 | . 30 1 18 Hits 135 | . 73 9 53 Projectile 135 | . 73 9 53 Critical Strikes 4 | . 1 1 2 Damage Taken 1403 | . 637 147 619 Core 250 | . 134 . 116 Absorbed by Shields . | . . . . Ignored by Resistances 415 | . 198 39 178 Regen/Repaired (Parts) 31 | . 31 . . Core Remaining (%) 100 | 100 . . . Volleys Fired 89 | . 52 7 30 Largest 2 | . 2 2 2 Hottest 110 | . 85 85 110 Shots Fired 166 | . 95 14 57 Gun 157 | . 94 14 49 Cannon 8 | . . . 8 Launcher 1 | . 1 . . Special . | . . . . Kinetic 104 | . 51 7 46 Thermal 61 | . 43 7 11 Explosive 1 | . 1 . . Electromagnetic . | . . . . Robot Hit Streak 21 | . 12 13 21 Robot Miss Streak 4 | . 4 1 2 Penetration Max . | . . . . Secondary Targets 3 | . 2 1 . Max Gunslinging Chain 1 | . 1 1 . Shots Hit Robots 124 | . 72 13 39 Core Hits 38 | . 21 6 11 Critical Kills . | . . . . Critical Parts Destroyed 2 | . 1 . 1 Critical Strikes 4 | . 2 . 2 Burn 2 | . 1 . 1 Destroy 2 | . 1 . 1 Melee Attacks . | . . . . Impact . | . . . . Slashing . | . . . . Piercing . | . . . . Sneak Attacks . | . . . . Combat Hostiles . | . . . . Follow-up Attacks . | . . . . Damage Inflicted 1885 | . 897 177 811 Guns 1738 | . 897 177 664 Cannons 147 | . . . 147 Explosions . | . . . . Melee . | . . . . Ramming . | . . . . Kinetic 1108 | . 428 78 602 Thermal 777 | . 469 99 209 Explosive . | . . . . Electromagnetic . | . . . . Impact . | . . . . Slashing . | . . . . Piercing . | . . . . Highest Corruption . | . . . . Average Corruption . | . . . . Corruption Purged . | . . . . Corruption Blocked . | . . . . Overload Shots . | . . . . Overflow Damage . | . . . . Projectiles . | . . . . Explosions . | . . . . Melee . | . . . . Knockbacks . | . . . . Impact . | . . . . Kinetic . | . . . . Secondary . | . . . . Self-Inflicted Damage . | . . . . Shots . | . . . . Rammed . | . . . . Targets Rammed . | . . . . Kicked . | . . . . Crushed . | . . . . Highest Temperature 256 | . 256 1 42 Average Temperature 67 | . 84 1 12 Received Heat Transfer 712 | . 438 45 229 Siege Activations . | . . . . Martial Activations . | . . . . Shielding Activations . | . . . . Robots Disrupted . | . . . . Combat Hostiles . | . . . . Robots Corrupted . | . . . . Combat Hostiles . | . . . . Parts Fried . | . . . . Impact Corruptions . | . . . . Robots Melted . | . . . . Combat Hostiles . | . . . . Parts Melted 3 | . 2 . 1 Heat Transferred 1885 | . 1178 222 485 Parts Sabotaged . | . . . . Parts Stolen . | . . . . Parts Stripped . | . . . . Power Chain Reactions . | . . . . Alert | -11 -10 -10 -9 ------- Run | Yrd Mat Sub Scr Maximum Alert Level . | . . . . Low Security (%) 100 | 100 100 . . Level 1 . | . . . . Level 2 . | . . . . Level 3 . | . . . . Level 4 . | . . . . Level 5 . | . . . . High Security . | . . . . Max Security . | . . . . Peak Influence 105 | . 105 . . Initial . | . . . . Average 16 | . 17 . . Influence Increases 289 | . 269 20 . Destroy 0b10 Robot/C 180 | . 160 20 . Destroy 0b10 Robot/NC 25 | . 25 . . Destroy Leader 40 | . 40 . . Successful Hack 24 | . 24 . . Destroy Structure 5 | . 5 . . Lose Combat Pursuer 15 | . 15 . . Influence Decreases 289 | . 269 20 . Time Decay 239 | . 219 20 . Lost Part 50 | . 50 . . Squads Dispatched . | . . . . Investigation . | . . . . Extermination . | . . . . Reinforcement . | . . . . Assault . | . . . . Garrison . | . . . . Intercept . | . . . . Searches Triggered . | . . . . Construction Impeded . | . . . . Haulers Reinforced . | . . . . Active Scanning Responses . | . . . . Cargo Convoy Interrupts . | . . . . Stealth | -11 -10 -10 -9 --------- Run | Yrd Mat Sub Scr Distress Signals . | . . . . Communications Jammed . | . . . . Distress Signals . | . . . . Times Spotted 32 | . 15 4 13 Peak Tracking Total 6 | . 6 2 4 Tactical Retreats 1 | . 1 . . Traps | -11 -10 -10 -9 ------- Run | Yrd Mat Sub Scr Traps Triggered . | . . . . Indirectly . | . . . . Trap Hack Attempts . | . . . . Triggered . | . . . . Disarmed . | . . . . Reprogrammed 2 | . 2 . . Reused . | . . . . Traps Extracted . | . . . . Installed . | . . . . Triggered . | . . . . Machines | -11 -10 -10 -9 ---------- Run | Yrd Mat Sub Scr Machines Disabled 4 | . . . 4 Max in Single Turn 1 | . . . 1 Machines Repaired . | . . . . Machines Dismantled . | . . . . Machines Sabotaged . | . . . . Overloaded Fab Kills . | . . . . Hacking | -11 -10 -10 -9 --------- Run | Yrd Mat Sub Scr Machines Accessed 15 | . 6 . 9 Terminals 5 | . 5 . . Fabricators . | . . . . Repair Stations 1 | . 1 . . Recycling Units . | . . . . Scanalyzers . | . . . . Garrison Access . | . . . . Total Hacks 93 | . 27 . 66 Successful 86 | . 20 . 66 Failed 6 | . 6 . . Catastrophic . | . . . . Database Lockouts 1 | . 1 . . Manual 11 | . 11 . . Terminals 25 | . 25 . . Fabricators . | . . . . Repair Stations 2 | . 2 . . Recycling Units . | . . . . Scanalyzers . | . . . . Garrison Access . | . . . . Terminal Hacks 79 | . 13 . 66 Record 61 | . 2 . 59 Robot Analysis 8 | . 1 . 7 Emergency Access Points 2 | . 2 . . Alert Level 1 | . 1 . . Reprogram Traps 1 | . 1 . . Dispatch Records 1 | . 1 . . Maintenance Status 1 | . 1 . . Transport Status 2 | . 2 . . Hauler Manifests 1 | . 1 . . Registered Components 1 | . 1 . . Fabricator Hacks . | . . . . Repair Station Hacks 2 | . 2 . . Scan Component 1 | . 1 . . Repair 1 | . 1 . . Recycling Unit Hacks . | . . . . Scanalyzer . | . . . . Garrison Access Hacks . | . . . . Unauthorized Hacks 5 | . 5 . . Terminals 5 | . 5 . . Botnet 5 | . 5 . . Fabricators . | . . . . Repair Stations . | . . . . Recycling Units . | . . . . Scanalyzers . | . . . . Garrison Access . | . . . . Data Cores Recovered . | . . . . Used . | . . . . Hacking Detections 3 | . 3 . . Full Trace Events . | . . . . Feedback Events . | . . . . Feedback Blocked . | . . . . Robot Schematics Acquired . | . . . . Robots Built . | . . . . Authchips . | . . . . Time . | . . . . Total Robot Build Rating . | . . . . Part Schematics Acquired . | . . . . Parts Built . | . . . . Authchips . | . . . . Time . | . . . . Total Part Build Rating . | . . . . Part Studies Acquired . | . . . . Parts Repaired 1 | . 1 . . Time 26 | . 26 . . Parts Recycled . | . . . . Recycled Matter . | . . . . Retrieved Matter . | . . . . Retrieved Components . | . . . . Parts Scanalyzed . | . . . . Part Schematics Acquired . | . . . . Parts Damaged . | . . . . Bothacking | -11 -10 -10 -9 ------------ Run | Yrd Mat Sub Scr Used RIF Installer . | . . . . Robots Hacked . | . . . . Non-combat . | . . . . Combat . | . . . . Robot Hacks Applied . | . . . . Relay Couplers Released . | . . . . Fabnet Peak Effective % . | . . . . Robots Rewired . | . . . . Allies Hacked . | . . . . Hacks Repelled . | . . . . Allies | -11 -10 -10 -9 -------- Run | Yrd Mat Sub Scr Total Allies . | . . . . Largest Group . | . . . . Highest-Rated Group . | . . . . Highest-Rated Ally . | . . . . Total Orders . | . . . . Ally Attacks . | . . . . Total Damage . | . . . . Kills . | . . . . Allies Corrupted . | . . . . Allies Melted 6 | . . . 6 Intel | -11 -10 -10 -9 ------- Run | Yrd Mat Sub Scr Active Infowar (turns) . | . . . . Robot Analysis Total 8 | . 1 . 7 Derelict Logs Recovered 1 | . . 1 . Drone Launches . | . . . . Drone Recoveries . | . . . . Exploration | -11 -10 -10 -9 ------------- Run | Yrd Mat Sub Scr Turns Passed 5295 | 65 1324 345 3561 Spaces Moved 3972 | 46 776 266 2884 Core 17 | 4 13 . . Treads 3 | 3 . . . Legs 1192 | 39 763 266 124 Wheels 2760 | . . . 2760 Hover . | . . . . Flight . | . . . . Fastest Speed 50 | 50 120 120 115 Average Speed 118 | 116 122 120 117 Slowest Speed 250 | 160 250 120 190 Overloaded Moves . | . . . . Propulsion Burnouts . | . . . . Robots Hopped . | . . . . Potential Cave-ins . | . . . . Cave-ins Triggered . | . . . . Exploration Rate (%) 54 | 4 94 24 94 Regions Visited 3 Branch Regions 2 Pre-discovered Areas 1 | . . . 1 Known Exits Taken . | . . . . Unknown Exits Taken 3 | 1 1 1 . Scrap Searched 9 | . . 3 6 Spaces Dug . | . . . . Terrain Destroyed 8 | . 5 . 3 Melee . | . . . . Projectile 3 | . . . 3 AOE 5 | . 5 . . Terrain Rammed . | . . . . Walls Destroyed . | . . . . Machines Disabled . | . . . . Actions | -11 -10 -10 -9 --------- Run | Yrd Mat Sub Scr Total 4402 | 55 1060 278 3009 Wait 231 | . 207 6 18 Move 3969 | 45 775 265 2884 Hop . | . . . . Pick Up 50 | 3 13 . 34 Fast Attach 9 | 6 2 . 1 Attach 9 | . 6 . 3 Detach . | . . . . Swap 10 | . 2 . 8 Drop 35 | 1 3 . 31 Fire 89 | . 52 7 30 Melee . | . . . . Ram . | . . . . Kick . | . . . . Crush . | . . . . Escape Stasis . | . . . . Rewire . | . . . . Trap . | . . . . Miscellaneous . | . . . . Route ------- -11/Scrapyard -10/Materials (discovered 5 exits: [*Mat x3] / [*Min] / [*Sub]) -10/Subcaves -9/Scraptown (discovered 2 exits: [*Fac x2]) History --------- Turn | Location | Event 2 | -11/Scrapyard | Met Revision 17 12 | -11/Scrapyard | Discovered new exit (range 15) 66 | -11/Scrapyard | Entered Materials 244 | -10/Materials | Discovered new exit (range 5) 250 | -10/Materials | Discovered new exit (range 14) 325 | -10/Materials | Core integrity fell below 50% 343 | -10/Materials | Build established: Mutant 343 | -10/Materials | Lost 5 parts (1p2n2w) 578 | -10/Materials | Repaired Aluminum Leg 671 | -10/Materials | Discovered new exit (range 3) 741 | -10/Materials | Discovered new exit (range 11) 865 | -10/Materials | Build established: Scavenger-Mutant 1055 | -10/Materials | Central database locked down 1379 | -10/Materials | Discovered new exit (range 6) 1390 | -10/Materials | Entered Subcaves 1391 | -10/Subcaves | Approached by a straggling Scientist 1394 | -10/Subcaves | Learned Materials stockpile data 1489 | -10/Subcaves | Disturbed a concealed Subdweller 1670 | -10/Subcaves | Shifting Twisted Machinery released Sub. Laser 1735 | -10/Subcaves | Entered Scraptown 2050 | -9/Scraptown | Discovered new exit (range 11) 2129 | -9/Scraptown | Visited Bundlers 2202 | -9/Scraptown | Visited TADAMA 2267 | -9/Scraptown | Visited UFD Registry 2273 | -9/Scraptown | Build established: Mutant 2284 | -9/Scraptown | Visited Comm Corps 2341 | -9/Scraptown | Registered with UFD as "Gaussplate" 2452 | -9/Scraptown | Visited Cyclists 2475 | -9/Scraptown | Entered Cyclist Reading Room 2611 | -9/Scraptown | Visited CPS Storage 2648 | -9/Scraptown | Visited Red Mages 2836 | -9/Scraptown | Visited The Evicted 3133 | -9/Scraptown | Visited Curators Association 3169 | -9/Scraptown | Visited DA-N13 Charitable Foundation 3178 | -9/Scraptown | Found DCF Scrap (29 items) 3265 | -9/Scraptown | Visited Supply Room 3441 | -9/Scraptown | Visited Analyses Database 3474 | -9/Scraptown | Visited Derelict Rescue Squad 3552 | -9/Scraptown | Visited Research Penetration Think Tank 3592 | -9/Scraptown | Visited LU-1G1's Boring Crew 3655 | -9/Scraptown | Visited Abandonware Association 3680 | -9/Scraptown | Learned abandonware demo "REPAIR.EXE" 3821 | -9/Scraptown | Visited Modified Component R&D 4743 | -9/Scraptown | Discovered new exit (range 3) 4935 | -9/Scraptown | Met Optimus 4935 | -9/Scraptown | Accepted into 0bPrime 5008 | -9/Scraptown | Civil war broke out across Scraptown 5049 | -9/Scraptown | Found Surveybot 24 Chip 5066 | -9/Scraptown | Lost 4 allies 5189 | -9/Scraptown | Lost 6 allies 5192 | -9/Scraptown | Core integrity fell below 20% 5280 | -9/Scraptown | Lost 11 allies 5285 | -9/Scraptown | Optimus destroyed in the chaos of civil war 5296 | -9/Scraptown | Destroyed by HY-NLQ(h) with Bolt Gun Last Messages --------------- 05258_ Dropped Corrupted Imp. Deuterium Engine. 05263_ Acquired Lgt. Deuterium Engine. 05272_ Dropped Imp. Aluminum Leg. 05272_ Acquired Carbon-fiber Leg. 05274_ Dropped Carbon-fiber Leg. 05274_ Acquired Carbon-fiber Leg. 05277_ Acquired Beamcaster. 05278_ Slug penetrates Wall. 05281_ Bolt penetrates Wall. 05281_ Slug penetrates JA-GR7(g). 05284_ HY-NLQ(h) suffers critical hit (Burn). 05285_ Penetrated by Bolt. 05285_ Bolt penetrates Wall. 05285_ ANNOUNCEMENT: The traitor Optimus has been dealt with. Put down any remaining collaborators. 05287_ Penetrated by Bolt. 05287_ Acquired 22 matter. 05295_ Beamcaster destroyed. 05296_ Arm. Huge Wheel destroyed. Map ----- +----------------------------------------------------+ | """######## ##"""""" ""#"" """"""#???????????? | | #???????????? | | #???????????? | | #???????????? | | ########### ##########"" """"#####???????????? | | ######????## ##????????#" "#???????????????? | | """""#####?# #########?#" ""#???????????????? | | " #?# """"""""#?#" """#???????????????? | | " "### ### " ""#?#" """#???????????????? | | " "#"" """ "#?#"""""""#???????????????? | | """""#" """ " ""#?#######?????????????????? | | ######" " """"""""#?????????????????????????? | | """""#" ##"""####???????????????????????### | | " "#" "" " #?######################????????#"" | | " "#" "[ #?????# """"## #????????# " | | " "#""""*!! #?????# ||| ## #????????# | | """""######!% #?????# """"## """"" #????????# | | ######???? !!* #?????# ||| ## """"" #????????# | | ###########*%= #?????# """"## %[ """ #????????# | | %=&%[! #?????# || ## ! #????????# | | [!*[[!#?????# """"## #????????# | | ###########!=!=#?????# |||=## = ###??????# | | ??????????#%%!%#???### %*[##[%! # ##?????### | | ###########!=%[#####;;###%###![ ;;##;;#""#???????# | | """""" #[!/=gj = !!!=*!%== !% #???????# | | """ """ # *%!!j !%*=* ![@%%[=*%! #???????# | | ""[%=# h=!=!![ =! !=!=*! #???????# | | "" " [ % %=[ ![%=![!%= #???????# | | " " /%%==]=!=%%==%*%!!%==* #???????# | | " " [ # !!*%############%###![ = #???##### | | " ""! # [= #?# *! "" %=% #???#"""" | | " """ # * #?# ## =%= #???#"""" | | " # #?#"" %["## !!! #???#""" | | " # #?#"$ ! ## [ #???#""" | | " """"" # #?#"" ""## =%! #???#"""= | | """""""""# #?# ! "## *%= ###?#"""" | | ########## #?#"" * "## [ ""#"#"""" | | ########## #?#" ]""## !%""""#"""" | | """""""""# #?#"" ## =""####### | | "" ""# #?####### % ## %###?????# | | "" "" # #?#!]!=!= =% %## ######### | | " #?#![%!![!%! ## | | "" # #?#!!%*!!! ! "## ! | | " "" # #?#*=] [#""" ""## /% | | " " # #?############### | | "" " # ################# % ==* | | """ """# % !%[ | | """""""""# =[ !! | | ########## !%= | | ?????????# !* * | +----------------------------------------------------+ Best States ------------- Heat Dissipation 39 Energy Generation 16 Energy Capacity 290 Matter Stores 300 Matter Capacity 300 Sight Range 16 Terrain Scan Density 10 Resistance: KI 20 Resistance: TH 20 Resistance: EX 20 Resistance: EM 20 Resistance: I 20 Resistance: S 20 Resistance: P 20 Evasion (%) 55 Recoil Reduction 1 Offensive Hacking 10 Item Schematics ----------------- None Robot Schematics ------------------ None Fabricated ------------ Nothing Repaired ---------- Aluminum Leg | 65% | -10/Materials Studied --------- None Alien Tech Used ----------------- None Achievements -------------- None Challenges ------------ None Game ------ Seed ParticleGodRay Manual? 0 Play Time 00:36:28 Cumulative 286.7 hours Start 2026.07.09 @ 09:56:31 End 2026.08.04 @ 14:45:03 Sessions 2 Manual Loads 0 Difficulty Adventurer Special Mode None Game No. 338 Rogue 0 Adventurer 338 Explorer 0 Win Type - Total 0 Types 0/0/0/0/0/0/0/0/0/0 Lore% 75 Gallery% 59 Achievement% 41 Wizard Run 0 Options --------- Layout 2 ASCII 0 Keyboard 0 Movement Mouse Keybinds 0 Fullscreen 2 Font 48/Smallcaps Map View 50x44 Zoom Use 0% Tactical HUD 1 Map Filters NONE Filters NONE Steam 1 RUN: 30654dca-7a36-43bb-9071-16f45299aacf